bitfinex/quotes_SOLUSD_20251116
["timestamp","ask_amount","ask_price","bid_price","bid_amount"]
[1763328924379,50.71,136.16,136.15,10.44727468]
[1763328924795,50.71,136.16,136.15,6.00278858]
[1763328924994,50.71,136.16,136.14,6.00278858]
[1763328925200,50.71,136.16,136.15,6.00278858]
[1763328927497,50.0,136.16,136.15,6.00278858]
[1763328928372,50.71,136.16,136.15,6.00278858]
[1763328929895,100.71,136.16,136.15,6.00278858]
[1763328930201,100.0,136.14,136.12,0.1]
[1763328930397,6.00278858,136.13,136.12,0.1]
[1763328930588,100.0,136.11,136.1,0.1]
[1763328930786,50.0,136.11,136.1,0.1]
[1763328931097,100.7,136.11,136.1,0.1]
[1763328932002,50.0,136.11,136.1,6.10278858]
[1763328932297,50.0,136.13,136.1,6.10278858]
[1763328932513,50.0,136.13,136.12,6.00278858]
[1763328932690,50.7,136.13,136.12,6.00278858]
[1763328934582,50.0,136.13,136.12,6.00278858]
[1763328935807,50.7,136.13,136.12,6.00278858]
[1763328936185,0.7,136.14,136.12,6.00278858]
[1763328936508,0.7,136.14,136.13,6.00278858]
[1763328936710,0.7,136.14,136.12,6.00278858]
[1763328937289,0.7,136.14,136.13,6.00278858]
[1763328937789,50.0,136.15,136.13,6.00278858]
[1763328938105,100.7,136.15,136.13,6.00278858]
[1763328938298,100.7,136.15,136.1,0.72]
[1763328938299,0.7,136.14,136.1,0.72]
[1763328938506,100.0,136.13,136.1,6.10278858]
[1763328939011,0.7,136.12,136.1,6.10278858]
[1763328940286,50.0,136.13,136.11,6.00278858]
[1763328940493,50.7,136.13,136.11,6.00278858]
[1763328940817,50.7,136.13,136.11,2.52227089]
[1763328941017,0.7,136.12,136.11,2.52227089]
[1763328941891,0.7,136.12,136.1,0.1]
[1763328942086,0.7,136.12,136.1,2.62227089]
[1763328944409,100.0,136.11,136.1,0.1]
[1763328944789,100.7,136.11,136.1,0.1]
[1763328945716,103.22227089,136.11,136.1,0.1]
[1763328947313,100.7,136.11,136.1,0.1]
[1763328947815,103.22227089,136.11,136.1,0.1]
[1763328951118,100.7,136.11,136.1,0.1]
[1763328952188,103.22227089,136.11,136.1,0.1]
[1763328952817,9.78882769,136.1,136.09,0.1]
[1763328953116,100.0,136.05,136.03,0.1]
[1763328953415,102.52227089,136.05,136.03,0.1]
[1763328953617,0.7,136.04,136.03,0.1]
[1763328954711,3.22227089,136.04,136.03,0.1]
[1763328955016,6.71629411,136.04,136.03,0.1]
[1763328955231,16.5051218,136.04,136.03,0.1]
[1763328955734,39.1563218,136.04,136.03,0.1]
[1763328957307,33.14002769,136.04,136.03,0.1]
[1763328957514,39.1563218,136.04,136.03,0.1]
[1763328960437,16.5051218,136.04,136.03,0.1]
[1763328961139,10.48882769,136.04,136.03,0.1]
[1763328961309,16.5051218,136.04,136.03,0.1]
[1763328966849,10.48882769,136.04,136.03,0.1]
[1763328967050,39.1563218,136.04,136.03,0.1]
[1763328967556,100.0,136.05,136.03,0.1]
[1763328967919,0.7,136.04,136.03,0.1]
[1763328968115,100.0,136.05,136.03,0.1]
[1763328969650,6.71629411,136.04,136.03,0.1]
[1763328970019,39.1563218,136.04,136.03,0.1]
[1763328970643,16.5051218,136.04,136.03,0.1]
[1763328970827,18.50512179,136.04,136.03,0.1]
[1763328971352,16.5051218,136.04,136.03,0.1]
[1763328971819,18.50512179,136.04,136.03,0.1]
[1763328972021,16.5051218,136.04,136.03,0.1]
[1763328972527,10.48882769,136.04,136.03,0.1]
[1763328972745,16.5051218,136.04,136.03,0.1]
[1763328976769,0.7,136.04,136.03,0.1]
[1763328976943,100.0,136.05,136.03,0.1]
[1763328977151,100.7,136.05,136.03,0.1]
[1763328977857,3.22680942,136.04,136.03,0.1]
[1763328978278,100.0,136.05,136.03,0.1]
[1763328978900,103.22680942,136.05,136.03,0.1]
[1763328979967,100.7,136.05,136.03,0.1]
[1763328981686,103.22680942,136.05,136.03,0.1]
[1763328985666,3.22680942,136.04,136.03,0.1]
[1763328986060,13.01563711,136.04,136.03,0.1]
[1763328986761,14.43737471,136.04,136.03,0.1]
[1763328993080,13.73737471,136.04,136.03,0.1]
[1763328993659,14.39737471,136.04,136.03,0.1]
[1763328995677,103.94854702,136.05,136.03,0.1]
[1763328995983,104.60854702,136.05,136.03,0.1]
[1763328996289,103.94854702,136.05,136.03,0.1]
[1763328996990,100.0,136.05,136.03,0.1]
[1763328997293,100.0,136.05,136.03,0.77]
[1763328998069,100.0,136.05,136.03,0.1]
[1763328998070,104.60854702,136.05,136.03,0.1]
[1763328998269,100.0,136.05,136.03,0.77]
[1763328998482,103.94854702,136.05,136.03,0.1]
[1763328998773,4.60854702,136.04,136.03,0.1]
[1763328999478,50.0,136.05,136.03,0.1]
[1763328999685,3.94854702,136.04,136.03,0.1]
[1763329001776,72.6512,136.05,136.03,0.1]
[1763329002086,3.94854702,136.04,136.03,0.1]
[1763329009383,50.0,136.04,136.03,0.1]
[1763329009700,50.0,136.04,136.03,0.77]
[1763329010004,50.0,136.04,136.03,4.71854702]
[1763329010705,50.0,136.08,136.03,4.71854702]
[1763329010907,50.0,136.08,136.07,3.94854702]
[1763329011397,50.0,136.08,136.07,4.61854702]
[1763329014607,50.0,136.08,136.07,0.67]
[1763329014785,50.0,136.08,136.07,4.61854702]
[1763329019780,103.2,136.09,136.07,4.61854702]
[1763329019986,50.0,136.12,136.08,4.61854702]
[1763329020210,50.0,136.12,136.11,3.94854702]
[1763329020714,50.0,136.12,136.11,4.64854702]
[1763329021497,103.2,136.15,136.11,27.29974702]
[1763329021699,103.2,136.15,136.14,3.94854702]
[1763329021896,100.0,136.18,136.14,3.94854702]
[1763329022096,50.0,136.16,136.15,4.64854702]
[1763329022913,50.0,136.18,136.15,4.64854702]
[1763329023209,50.0,136.18,136.16,0.7]
[1763329024518,50.0,136.16,136.15,3.94854702]
[1763329025098,50.0,136.16,136.15,4.64854702]
[1763329026692,50.0,136.18,136.15,8.59709404]
[1763329026892,50.0,136.18,136.17,3.94854702]
[1763329027411,103.2,136.2,136.17,27.29974702]
[1763329027735,103.2,136.2,136.19,3.94854702]
[1763329027896,50.0,136.21,136.19,3.94854702]
[1763329028229,50.0,136.21,136.2,3.94854702]
[1763329028521,50.0,136.21,136.2,4.64854702]
[1763329030001,50.0,136.19,136.17,3.94854702]
[1763329030224,50.0,136.17,136.15,4.64854702]
[1763329030798,50.0,136.15,136.14,3.94854702]
[1763329031508,50.0,136.15,136.14,4.64854702]
[1763329032402,50.67,136.18,136.14,4.64854702]
[1763329032403,50.0,136.17,136.14,4.64854702]
[1763329032599,50.0,136.17,136.15,4.64854702]
[1763329032794,50.0,136.17,136.16,3.94854702]
[1763329033116,50.0,136.17,136.16,4.64854702]
[1763329034217,50.0,136.19,136.16,4.64854702]
[1763329034434,50.0,136.19,136.18,3.94854702]
[1763329034936,50.0,136.19,136.18,4.64854702]
[1763329039209,50.0,136.19,136.18,3.94854702]
[1763329039409,50.0,136.18,136.12,32.44002769]
[1763329039612,153.2,136.21,136.13,9.78882769]
[1763329039803,153.2,136.21,136.16,22.6512]
[1763329040006,50.0,136.2,136.16,22.6512]
[1763329040209,50.0,136.2,136.17,0.67]
[1763329040623,153.2,136.21,136.19,3.94854702]
[1763329040826,153.2,136.21,136.2,3.94854702]
[1763329041303,153.2,136.21,136.2,4.61854702]
[1763329043714,50.0,136.2,136.19,3.94854702]
[1763329044114,50.0,136.19,136.18,3.94854702]
[1763329044317,50.0,136.18,136.17,4.61854702]
[1763329044929,50.0,136.19,136.17,11.11685194]
[1763329045117,50.0,136.19,136.18,11.11685194]
[1763329045932,50.0,136.21,136.18,11.11685194]
[1763329046143,50.0,136.21,136.2,10.44685194]
[1763329046514,50.2,136.23,136.2,11.11685194]
[1763329046715,50.2,136.23,136.22,33.09805194]
[1763329046916,50.2,136.23,136.22,28.646391]
[1763329047137,50.2,136.23,136.22,29.316391]
[1763329048830,50.2,136.23,136.22,6.665191]
[1763329049142,50.0,136.21,136.19,0.67]
[1763329049448,50.0,136.2,136.19,5.995191]
[1763329049620,50.0,136.2,136.16,32.44002769]
[1763329049822,50.0,136.2,136.19,5.995191]
[1763329050446,50.0,136.2,136.19,6.715191]
[1763329050830,50.0,136.21,136.19,6.715191]
[1763329051027,50.0,136.21,136.2,6.715191]
[1763329053612,50.0,136.21,136.2,0.72]
[1763329053818,50.0,136.21,136.2,6.715191]
[1763329056035,50.0,136.21,136.19,5.995191]
[1763329056036,50.0,136.2,136.19,5.995191]
[1763329056223,50.69,136.2,136.18,5.995191]
[1763329056425,50.0,136.18,136.17,6.715191]
[1763329057429,50.0,136.18,136.17,5.995191]
[1763329058635,50.0,136.17,136.15,5.995191]
[1763329059031,50.0,136.17,136.13,0.72]
[1763329059032,50.0,136.16,136.14,5.995191]
[1763329059168,50.0,136.16,136.15,5.995191]
[1763329059866,50.0,136.16,136.13,0.72]
[1763329059867,50.0,136.14,136.13,0.72]
[1763329060171,100.0,136.16,136.12,22.6512]
[1763329060764,100.0,136.16,136.13,0.72]
[1763329060940,100.0,136.16,136.15,5.995191]
[1763329066786,100.69,136.16,136.14,2.5213583]
[1763329066986,0.69,136.15,136.14,2.5213583]
[1763329067147,50.0,136.11,136.09,0.72]
[1763329067457,100.0,136.09,136.07,2.5213583]
[1763329067856,0.69,136.08,136.06,2.5213583]
[1763329068048,100.69,136.09,136.07,2.5213583]
[1763329068861,100.69,136.09,136.07,6.0095983]
[1763329069263,100.69,136.09,136.05,21.95584563]
[1763329069264,100.0,136.09,136.08,6.0095983]
[1763329069484,50.0,136.08,136.07,6.0095983]
[1763329070572,50.0,136.07,136.06,6.0095983]
[1763329070890,50.0,136.05,136.04,6.0095983]
[1763329071190,50.0,136.04,136.03,6.1095983]
[1763329072201,50.69,136.04,136.03,6.1095983]
[1763329072353,50.0,136.04,136.03,6.1095983]
[1763329076080,50.0,136.04,136.03,6.8295983]
[1763329076393,50.0,136.04,136.03,6.1095983]
[1763329076566,50.69,136.04,136.03,6.1095983]
[1763329076890,50.0,136.04,136.03,6.1095983]
[1763329080587,50.66,136.04,136.03,6.1095983]
[1763329081089,50.0,136.04,136.03,6.1095983]
[1763329081787,50.0,136.04,136.03,6.8195983]
[1763329083700,50.66,136.04,136.03,6.1095983]
[1763329083902,50.66,136.04,136.03,0.1]
[1763329084220,56.6695983,136.04,136.03,0.1]
[1763329084389,100.0,136.02,136.01,0.1]
[1763329084589,106.0095983,136.02,136.01,0.1]
[1763329084811,106.6695983,136.02,136.01,0.1]
[1763329085034,116.45842599,136.02,136.01,0.1]
[1763329086932,100.0,135.92,135.91,0.1]
[1763329087141,106.0095983,135.92,135.91,0.1]
[1763329087437,106.6695983,135.92,135.91,0.1]
[1763329087612,100.66,135.92,135.91,0.1]
[1763329087793,100.0,135.92,135.91,6.1095983]
[1763329087988,50.0,135.94,135.91,6.8195983]
[1763329088218,100.0,135.94,135.93,6.0095983]
[1763329089063,100.0,135.92,135.91,6.1095983]
[1763329089596,100.0,135.92,135.91,0.1]
[1763329090326,100.66,135.92,135.91,0.1]
[1763329090526,106.6695983,135.92,135.91,0.1]
[1763329090724,100.66,135.92,135.91,0.1]
[1763329091917,106.6695983,135.92,135.91,0.1]
[1763329093019,100.66,135.92,135.91,0.1]
[1763329093609,106.6695983,135.92,135.91,0.1]
[1763329094433,100.66,135.92,135.91,0.1]
[1763329095827,106.6695983,135.92,135.91,0.1]
[1763329096227,100.0,135.92,135.91,0.1]
[1763329096438,100.0,135.94,135.91,6.7695983]
[1763329096617,50.0,135.94,135.93,6.0095983]
[1763329097037,50.0,135.96,135.93,6.6695983]
[1763329097347,50.0,135.99,135.95,6.0095983]
[1763329097348,50.0,135.98,135.95,6.0095983]
[1763329097551,50.0,135.98,135.97,6.0095983]
[1763329098045,50.0,135.98,135.97,6.6695983]
[1763329098508,100.0,135.96,135.95,6.0095983]
[1763329098709,50.0,135.95,135.94,6.0095983]
[1763329099111,50.0,135.96,135.94,6.6695983]
[1763329099327,50.0,135.96,135.95,6.6695983]
[1763329099732,50.0,135.96,135.95,0.66]
[1763329099938,50.0,135.96,135.95,6.6695983]
[1763329103135,50.0,135.96,135.95,0.66]
[1763329103335,50.0,135.96,135.95,6.6695983]
[1763329103547,50.0,135.95,135.94,6.0095983]
[1763329103732,50.0,135.93,135.92,6.0095983]
[1763329104062,50.0,135.93,135.92,29.3207983]
[1763329105042,50.0,135.94,135.92,29.3207983]
[1763329105253,50.0,135.96,135.93,6.6695983]
[1763329105557,50.0,135.96,135.95,6.0095983]
[1763329105926,50.0,135.96,135.95,6.6695983]
[1763329108624,50.0,135.96,135.95,0.66]
[1763329108830,50.0,135.95,135.94,10.4818854]
[1763329111831,50.0,135.94,135.93,10.4818854]
[1763329112032,50.0,135.94,135.93,11.1718854]
[1763329112960,100.0,135.92,135.91,0.1]
[1763329113132,50.0,135.92,135.91,10.5818854]
[1763329113332,50.0,135.92,135.91,11.2718854]
[1763329113543,100.0,135.92,135.91,11.2718854]
[1763329113851,10.4818854,135.97,135.91,11.2718854]
[1763329113852,100.0,135.94,135.91,11.2718854]
[1763329114071,50.0,135.94,135.93,10.4818854]
[1763329114431,50.0,135.96,135.93,11.1718854]
[1763329114432,100.0,135.96,135.93,11.1718854]
[1763329114634,100.0,135.96,135.94,10.4818854]
[1763329115153,100.0,135.96,135.93,10.4818854]
[1763329115154,100.0,135.94,135.93,10.4818854]
[1763329115365,100.0,135.94,135.91,23.4412]
[1763329115574,100.0,135.94,135.92,10.4818854]
[1763329116642,100.0,135.94,135.93,10.4818854]
[1763329118244,100.0,135.94,135.91,22.7512]
[1763329118441,100.0,135.94,135.92,10.4818854]
[1763329119244,100.0,135.94,135.93,10.4818854]
[1763329119545,50.0,135.94,135.93,10.4818854]
[1763329121063,100.0,135.94,135.93,10.4818854]
[1763329121646,100.0,135.94,135.93,11.1718854]
[1763329121842,50.0,135.94,135.93,11.1718854]
[1763329125354,100.0,135.94,135.93,0.69]
[1763329125558,100.0,135.94,135.93,11.1718854]
[1763329129161,50.0,135.94,135.93,11.1718854]
[1763329129358,100.0,135.94,135.93,11.1718854]
[1763329130265,100.0,135.94,135.93,0.69]
[1763329130473,100.0,135.94,135.92,10.4818854]
[1763329130671,100.0,135.94,135.93,10.4818854]
[1763329131255,100.0,135.94,135.93,11.1718854]
[1763329132972,100.0,135.94,135.93,4.64203251]
[1763329133282,50.0,135.94,135.93,4.64203251]
[1763329133483,50.0,135.96,135.93,4.64203251]
[1763329133662,50.0,135.96,135.95,3.95203251]
[1763329134122,50.0,135.96,135.95,4.64203251]
[1763329134760,50.0,135.96,135.95,11.17074076]
[1763329134962,100.0,135.94,135.93,10.48074076]
[1763329135166,100.0,135.94,135.92,33.82194076]
[1763329135362,100.0,135.94,135.92,23.3412]
[1763329135561,100.0,135.94,135.92,33.82194076]
[1763329135760,100.0,135.94,135.92,22.6512]
[1763329135967,100.0,135.94,135.93,10.48074076]
[1763329137166,100.0,135.94,135.92,33.13194076]
[1763329137371,100.0,135.94,135.92,33.82194076]
[1763329137969,100.0,135.94,135.93,10.48074076]
[1763329139585,100.0,135.94,135.92,33.82194076]
[1763329140490,100.0,135.96,135.93,11.17074076]
[1763329140786,50.0,135.94,135.92,22.6512]
[1763329141493,50.0,135.94,135.93,0.69]
[1763329142075,50.0,135.94,135.93,11.17074076]
[1763329142788,100.0,135.94,135.93,11.17074076]
[1763329145393,100.0,135.94,135.93,10.48074076]
[1763329145892,100.0,135.94,135.93,11.17074076]
[1763329146674,50.0,135.96,135.95,22.6512]
[1763329146883,50.0,135.96,135.95,33.13194076]
[1763329147093,50.0,135.96,135.95,33.82194076]
[1763329147485,50.0,135.99,135.95,43.61076845]
[1763329147683,50.0,135.99,135.98,10.48074076]
[1763329148082,50.0,135.99,135.98,11.17074076]
[1763329148674,100.71,135.99,135.94,0.69]
[1763329148883,50.0,135.97,135.94,0.69]
[1763329149118,50.0,135.97,135.96,10.48074076]
[1763329149591,100.0,135.97,135.96,10.48074076]
[1763329150576,50.0,135.97,135.96,10.48074076]
[1763329151394,100.0,135.97,135.96,11.17074076]
[1763329151586,100.0,135.97,135.96,10.48074076]
[1763329151897,100.71,135.97,135.96,10.48074076]
[1763329153276,100.0,135.97,135.96,10.48074076]
[1763329153481,50.0,135.97,135.96,10.48074076]
[1763329154685,100.0,135.99,135.96,10.48074076]
[1763329154895,100.0,135.99,135.98,3.9484923]
[1763329155101,50.0,135.99,135.98,3.9484923]
[1763329155300,50.0,135.99,135.98,4.6384923]
[1763329155706,50.0,135.99,135.98,3.9484923]
[1763329156078,50.0,135.99,135.98,4.5984923]
[1763329156282,50.0,135.99,135.98,3.9484923]
[1763329157007,50.0,136.01,135.98,4.5984923]
[1763329157203,50.0,136.01,136.0,3.9484923]
[1763329157994,50.72,136.01,136.0,3.9484923]
[1763329158399,50.0,136.02,136.0,3.9484923]
[1763329158595,50.0,136.02,136.01,3.9484923]
[1763329159607,50.0,136.03,136.01,8.5469846]
[1763329159923,50.0,136.04,136.02,4.5984923]
[1763329160214,50.0,136.04,136.03,3.9484923]
[1763329160383,103.2,136.1,136.03,37.03851999]
[1763329160384,100.0,136.07,136.03,37.03851999]
[1763329160588,100.0,136.07,136.06,3.9484923]
[1763329161425,100.72,136.07,136.06,3.9484923]
[1763329161613,100.72,136.07,136.04,3.9484923]
[1763329161614,100.0,136.05,136.04,3.9484923]
[1763329161987,100.0,136.03,136.02,22.6512]
[1763329162193,100.0,136.03,136.02,3.9484923]
[1763329162395,100.72,136.03,136.02,3.9484923]
[1763329162628,100.0,136.02,136.01,3.9484923]
[1763329162795,100.0,136.02,136.01,10.47284047]
[1763329163100,100.72,136.02,136.01,10.47284047]
[1763329165717,100.0,136.02,136.01,10.47284047]
[1763329165921,100.72,136.02,136.01,10.47284047]
[1763329168900,100.72,136.02,136.01,6.01475739]
[1763329174021,50.0,135.99,135.98,22.6512]
[1763329174224,50.0,136.0,135.98,29.38595739]
[1763329174402,50.0,136.0,135.99,28.66595739]
[1763329174912,50.71,136.0,135.99,28.66595739]
[1763329175310,50.0,136.0,135.99,28.66595739]
[1763329176409,50.0,136.0,135.99,29.38595739]
[1763329177214,50.0,136.0,135.99,28.66595739]
[1763329177812,50.0,136.0,135.99,29.38595739]
[1763329178013,50.0,136.04,135.99,35.40071478]
[1763329178315,50.0,136.04,136.03,28.66595739]
[1763329178637,50.0,136.04,136.03,6.01475739]
[1763329178812,50.0,136.01,135.99,23.3712]
[1763329179015,50.0,136.01,136.0,6.01475739]
[1763329179209,50.0,136.01,136.0,6.73475739]
[1763329179409,50.0,136.01,136.0,12.74951478]
[1763329179810,50.0,136.01,136.0,6.73475739]
[1763329180020,50.0,136.01,136.0,6.01475739]
[1763329181340,50.0,136.01,136.0,12.74951478]
[1763329181515,50.0,136.01,136.0,6.73475739]
[1763329183643,50.0,136.01,136.0,6.01475739]
[1763329184115,50.0,136.01,136.0,6.73475739]
[1763329184823,50.0,136.01,136.0,3.24600702]
[1763329185537,50.0,136.01,136.0,2.52600702]
[1763329187844,50.0,136.01,136.0,3.24600702]
[1763329190519,50.0,136.03,136.0,5.77201404]
[1763329190724,50.0,136.03,136.02,2.52600702]
[1763329191223,50.0,136.03,136.02,3.24600702]
[1763329192345,50.0,136.03,136.02,25.89720702]
[1763329196442,50.0,136.03,136.02,3.24600702]
[1763329196621,50.0,136.02,136.01,22.6512]
[1763329196822,50.0,136.02,136.01,25.17720702]
[1763329197022,50.0,136.02,136.01,25.89720702]
[1763329197525,50.0,136.02,136.01,3.24600702]
[1763329197735,50.0,136.02,136.01,25.89720702]
[1763329198028,50.0,136.02,136.01,25.17720702]
[1763329198347,50.0,136.02,136.01,2.52600702]
[1763329199545,50.0,136.03,136.01,2.52600702]
[1763329199935,50.0,136.03,136.02,2.52600702]
[1763329200337,100.0,136.03,136.02,2.52600702]
[1763329201237,50.0,136.03,136.02,3.24600702]
[1763329201769,50.0,136.05,136.02,3.24600702]
[1763329202042,50.0,136.05,136.01,10.10402808]
[1763329202043,100.0,136.07,136.04,2.52600702]
[1763329202244,100.0,136.07,136.06,2.52600702]
[1763329202546,100.0,136.09,136.06,2.52600702]
[1763329202738,100.0,136.09,136.08,2.52600702]
[1763329203133,100.0,136.09,136.03,22.6512]
[1763329203134,50.0,136.04,136.03,22.6512]
[1763329203336,100.0,136.06,136.03,3.24600702]
[1763329203548,100.0,136.06,136.05,2.52600702]
[1763329204049,100.0,136.05,136.04,2.52600702]
[1763329206233,100.0,136.05,136.04,3.24600702]
[1763329207040,100.0,136.05,136.04,2.52600702]
[1763329208534,50.0,136.03,136.02,0.72]
[1763329210761,100.0,136.05,136.02,0.72]
[1763329210970,50.0,136.05,136.04,2.52600702]
[1763329211470,50.0,136.05,136.04,25.89720702]
[1763329211963,100.0,136.07,136.05,22.6512]
[1763329212163,100.0,136.07,136.06,2.52600702]
[1763329215642,100.71,136.07,136.05,2.52600702]
[1763329215859,100.0,136.07,136.06,2.52600702]
[1763329218783,100.0,136.07,136.06,3.21600702]
[1763329219764,50.0,136.07,136.06,3.21600702]
[1763329220057,50.0,136.07,136.06,2.52600702]
[1763329223668,100.71,136.07,136.06,2.52600702]
[1763329224163,100.0,136.07,136.06,2.52600702]
[1763329225457,50.0,136.07,136.06,2.52600702]
[1763329225887,50.0,136.09,136.06,3.21600702]
[1763329226169,50.0,136.09,136.04,22.6512]
[1763329226170,50.0,136.09,136.08,5.05201404]
[1763329226355,50.0,136.09,136.08,2.52600702]
[1763329227075,50.0,136.09,136.08,3.21600702]
[1763329227250,50.0,136.11,136.08,35.9712351]
[1763329227571,50.2,136.12,136.11,22.6512]
[1763329227774,50.2,136.12,136.11,25.86720702]
[1763329228448,50.2,136.12,136.11,25.17720702]
[1763329228649,50.91,136.12,136.11,2.52600702]
[1763329228866,50.0,136.11,136.08,4.63174241]
[1763329229065,50.2,136.12,136.09,0.69]
[1763329229374,50.91,136.12,136.09,0.69]
[1763329229544,0.2,136.12,136.1,22.6512]
[1763329230060,0.2,136.12,136.11,4.63174241]
[1763329231484,50.87,136.12,136.11,3.94174241]
[1763329231673,50.2,136.12,136.11,3.94174241]
[1763329234296,50.0,136.1,136.09,0.67]
[1763329234579,50.0,136.1,136.09,3.94174241]
[1763329234878,50.0,136.1,136.09,4.61174241]
[1763329235472,50.0,136.1,136.09,3.94174241]
[1763329236855,50.0,136.1,136.09,4.61174241]
[1763329238256,50.0,136.1,136.09,3.94174241]
[1763329240283,50.67,136.1,136.09,3.94174241]
[1763329240762,50.0,136.1,136.09,3.94174241]
[1763329241669,50.67,136.1,136.09,3.94174241]
[1763329243762,50.0,136.1,136.09,3.94174241]
[1763329243967,50.2,136.12,136.09,4.61174241]
[1763329244182,50.2,136.12,136.11,3.94174241]
[1763329244564,50.2,136.12,136.11,4.61174241]
[1763329245571,0.2,136.12,136.11,4.61174241]
[1763329245877,50.2,136.12,136.11,3.94174241]
[1763329246069,50.2,136.12,136.11,4.61174241]
[1763329246703,0.2,136.12,136.11,4.61174241]
[1763329247065,0.2,136.12,136.11,27.26294241]
[1763329248271,0.2,136.12,136.11,23.3212]
[1763329248590,0.2,136.12,136.11,27.26294241]
[1763329249489,50.0,136.15,136.11,37.0517701]
[1763329249694,50.0,136.15,136.14,3.94174241]
[1763329249891,50.0,136.15,136.14,26.59294241]
[1763329250189,50.0,136.15,136.14,27.26294241]
[1763329250373,50.2,136.16,136.14,27.26294241]
[1763329251281,50.2,136.16,136.15,3.94174241]
[1763329252194,0.2,136.16,136.15,8.55348482]
[1763329254383,0.2,136.16,136.15,4.61174241]
[1763329256499,0.2,136.16,136.15,8.55348482]
[1763329256803,0.2,136.16,136.15,18.34231251]
[1763329256984,0.2,136.16,136.15,40.43606366]
[1763329258976,100.2,136.21,136.16,9.78882769]
[1763329259205,100.87,136.21,136.2,3.94174241]
[1763329260210,50.2,136.21,136.2,3.94174241]
[1763329260512,50.2,136.21,136.2,4.59174241]
[1763329260700,50.2,136.21,136.2,3.94174241]
[1763329261008,100.88,136.21,136.2,3.94174241]
[1763329263495,50.0,136.19,136.18,22.6512]
[1763329263698,50.0,136.19,136.18,26.59294241]
[1763329265706,50.2,136.21,136.18,27.24294241]
[1763329265907,50.2,136.21,136.2,3.94174241]
[1763329266403,0.2,136.21,136.2,4.59174241]
[1763329269787,0.2,136.21,136.2,3.94174241]
[1763329270108,50.88,136.21,136.2,3.94174241]
[1763329270285,50.2,136.21,136.2,3.94174241]
[1763329271301,50.88,136.21,136.2,3.94174241]
[1763329272015,50.2,136.21,136.2,3.94174241]
[1763329272587,50.2,136.21,136.2,27.24294241]
[1763329272789,0.2,136.21,136.2,27.24294241]
[1763329273919,0.2,136.21,136.2,49.33018702]
[1763329274094,0.2,136.21,136.2,27.24294241]
[1763329274296,0.2,136.21,136.2,22.6512]
[1763329274601,0.2,136.21,136.2,26.59294241]
[1763329275807,50.2,136.21,136.2,3.94174241]
[1763329276006,50.88,136.21,136.2,3.94174241]
[1763329276316,50.2,136.21,136.2,3.94174241]
[1763329277813,50.88,136.21,136.2,3.94174241]
[1763329278197,50.88,136.21,136.17,0.65]
[1763329278407,50.88,136.21,136.2,3.94174241]
[1763329282412,50.0,136.2,136.17,0.65]
[1763329282614,50.0,136.2,136.19,3.94174241]
[1763329282800,50.88,136.21,136.19,3.94174241]
[1763329283005,50.2,136.21,136.2,3.94174241]
[1763329283312,50.88,136.21,136.2,3.94174241]
[1763329285202,50.88,136.21,136.18,0.65]
[1763329285203,50.0,136.2,136.18,0.65]